Cogmind - Beta 11 X10 @@@ ROGUE MODE // 2022.03.09 @ 07:28:20 Player: maxwell Result: Destroyed by D-53 Grenadier with Mini Grenade Launcher Performance ------------- Evolutions (0) 0 Regions Visited (2) 400 Robots Destroyed (23) 115 Value Destroyed (638) 638 Prototype IDs (0) 0 Alien Tech Used (0) 0 Bonus (0) 0 TOTAL SCORE: 1153 Bonus ------- None Cogmind --------- Core Integrity 0/250 Matter 269/300 Energy 100/100 System Corruption 0% Temperature Cool (0) Movement Rolling (175) Ox5 Location -10/Mines Parts ------- > --- POWER (1) -------- (None) > --- PROPULSION (2) --- Compact Wheel > --- UTILITY (2) ------ Huge Storage Unit Propulsion Shielding > --- WEAPON (2) ------- Assault Rifle > --- INVENTORY (25) --- Light Treads Light Treads Huge Storage Unit High-capacity Matter Pod (200) Structural Scanner Structural Scanner Experimental Sensor Array Grenade Launcher Mining Laser Peak State ------------ > --- POWER ------------ Light Ion Engine > --- PROPULSION ------- Wheel Compact Wheel > --- UTILITY ---------- Huge Storage Unit Targeting Computer > --- WEAPON ----------- EM Pulse Gun Small Laser > --- INVENTORY -------- Light Ion Engine Light Treads Light Treads Huge Storage Unit Structural Scanner Structural Scanner Propulsion Shielding Assault Rifle Assault Rifle Mining Laser [Rating: 8] Favorites ----------- Power Light Ion Engine Engine Light Ion Engine Propulsion Compact Wheel Wheel Compact Wheel Utility Huge Storage Unit Storage Huge Storage Unit Processor Targeting Computer Protection Propulsion Shielding Weapon Small Laser Energy Gun Small Laser Ballistic Gun Assault Rifle Launcher Grenade Launcher Build | -11 -10 -10 ------- Run | Scr Mat Min Slots Evolved . | . . . Power . | . . . Propulsion . | . . . Utility . | . . . Weapon . | . . . Parts Attached 17 | 6 7 4 Power 2 | 1 1 . Engine 2 | 1 1 . Core . | . . . Reactor . | . . . Propulsion 3 | 2 1 . Treads . | . . . Leg . | . . . Wheel 3 | 2 1 . Hover . | . . . Flight . | . . . Utility 5 | 1 4 . Device . | . . . Storage 2 | 1 1 . Processor 1 | . 1 . Hackware . | . . . Protection 2 | . 2 . Artifact . | . . . Weapon 7 | 2 1 4 Energy Gun 3 | 2 . 1 Energy Cannon . | . . . Ballistic Gun 3 | . 1 2 Ballistic Cannon . | . . . Launcher 1 | . . 1 Special Weapon . | . . . Impact Weapon . | . . . Slashing Weapon . | . . . Piercing Weapon . | . . . Special Melee Weapon . | . . . Unidentified Prototypes . | . . . Parts Lost 7 | . 2 5 Power 1 | . . 1 Propulsion 2 | . 1 1 Utility . | . . . Weapon 4 | . 1 3 Highest Loss Streak 4 | . 1 4 To Critical Strikes . | . . . Average Slot Usage (%) 95 | . 92 99 Engine 13 | . 14 13 Wheel 24 | . 21 27 Storage 14 | . 14 14 Protection 12 | . 11 14 Energy Gun 18 | . 18 17 Ballistic Gun 6 | . 9 4 Launcher 2 | . . 6 Naked Turns . | . . . Heaviest Build 88 | 11 87 88 Greatest Support 26 | 26 26 26 Greatest Overweight (x) 5 | . 5 3 Average Overweight (x) 3 | . 3 3 Largest Inventory Capacity 25 | 8 25 25 Average Capacity 24 | 6 24 25 Most Carried 10 | 4 10 10 Average Carried 8 | 1 7 8 Final Capacity 25 | 8 25 25 Final Carried 9 | 4 9 9 Class Distribution -------------------- 100% | Mutant Dominant Class ---------------- Mutant | -10/Materials Mutant | -10/Mines Resources | -11 -10 -10 ----------- Run | Scr Mat Min Matter Collected 628 | 231 318 79 Remotely . | . . . Salvage Created 967 | . 880 87 Parts 54 | . 51 3 Haulers Intercepted 1 | . 1 . Recyclers Shooed 1 | . 1 . Parts Field Recycled . | . . . Retrieved Matter . | . . . Parts Self-Destructed . | . . . Prevented . | . . . Kills | -11 -10 -10 ------- Run | Scr Mat Min Combat Hostiles Destroyed 15 | . 13 2 Guns 12 | . 10 2 AOE 3 | . 3 . Classes Destroyed 6 | . 6 . Worker 1 | . 1 . Hauler 1 | . 1 . Recycler 2 | . 2 . Operator 1 | . 1 . Watcher 3 | . 3 . Grunt 15 | . 13 2 Best Kill Streak 3 | . 3 2 Combat Bots Only 3 | . 3 2 Max Kills in Single Turn 3 | . 3 1 Gunslinging 1 | . 1 . Exploded 3 | . 3 . Melee . | . . . Uniques/NPCs Destroyed . | . . . Combat | -11 -10 -10 -------- Run | Scr Mat Min Damage Taken 863 | . 426 437 Core 260 | . 139 121 Absorbed by Shields . | . . . Redirected to Shielding 37 | . 16 21 Core Remaining (%) 100 | 100 . . Volleys Fired 66 | . 47 19 Largest 2 | . 2 2 Hottest 80 | . 80 80 Shots Fired 123 | . 94 29 Gun 123 | . 94 29 Cannon . | . . . Launcher . | . . . Special . | . . . Kinetic 34 | . 17 17 Thermal 57 | . 47 10 Explosive . | . . . Electromagnetic 32 | . 30 2 Robot Hit Streak 14 | . 14 3 Robot Miss Streak 3 | . 3 3 Penetration Max . | . . . Secondary Targets 1 | . 1 . Max Gunslinging Chain 1 | . 1 . Shots Hit Robots 85 | . 71 14 Core Hits 42 | . 35 7 Critical Kills . | . . . Critical Parts Destroyed . | . . . Critical Strikes 2 | . 2 . Corrupt 2 | . 2 . Melee Attacks . | . . . Impact . | . . . Slashing . | . . . Piercing . | . . . Sneak Attacks . | . . . Combat Hostiles . | . . . Follow-up Attacks . | . . . Damage Inflicted 1278 | . 1080 198 Guns 1144 | . 949 195 Cannons . | . . . Explosions 129 | . 129 . Melee . | . . . Ramming 5 | . 2 3 Kinetic 340 | . 203 137 Thermal 552 | . 505 47 Explosive . | . . . Electromagnetic 381 | . 370 11 Impact . | . . . Slashing . | . . . Piercing . | . . . Highest Corruption . | . . . Average Corruption . | . . . Corruption Purged . | . . . Corruption Blocked . | . . . Overload Shots . | . . . Overflow Damage . | . . . Projectiles . | . . . Explosions . | . . . Melee . | . . . Knockbacks . | . . . Impact . | . . . Kinetic . | . . . Secondary . | . . . Self-Inflicted Damage 1 | . . 1 Shots . | . . . Rammed 3 | . 2 1 Targets Rammed 3 | . 2 1 Kicked . | . . . Crushed . | . . . Highest Temperature 226 | . 226 55 Average Temperature 50 | . 54 29 Received Heat Transfer 303 | . 228 75 Siege Activations . | . . . Robots Corrupted . | . . . Combat Hostiles . | . . . Parts Fried 1 | . 1 . Impact Corruptions . | . . . Robots Melted . | . . . Combat Hostiles . | . . . Parts Melted . | . . . Heat Transferred 1125 | . 1025 100 Parts Sabotaged . | . . . Parts Stolen . | . . . Parts Stripped . | . . . Power Chain Reactions 2 | . 2 . Missiles Intercepted . | . . . Alert | -11 -10 -10 ------- Run | Scr Mat Min Peak Influence 220 | . 220 89 Initial 49 | . . 49 Average 63 | . 97 30 Maximum Alert Level 1 | . 1 . Low Security (%) 98 | 100 97 100 Level 1 1 | . 2 . Level 2 . | . . . Level 3 . | . . . Level 4 . | . . . Level 5 . | . . . High Security . | . . . Max Security . | . . . Squads Dispatched 5 | . 5 . Investigation 3 | . 3 . Extermination . | . . . Reinforcement 2 | . 2 . Assault . | . . . Garrison . | . . . Intercept . | . . . Construction Impeded . | . . . Haulers Reinforced . | . . . Active Scanning Responses . | . . . Cargo Convoy Interrupts . | . . . Stealth | -11 -10 -10 --------- Run | Scr Mat Min Distress Signals 2 | . 1 1 Communications Jammed . | . . . Distress Signals . | . . . Times Spotted 29 | . 25 4 Peak Tracking Total 4 | . 4 2 Tactical Retreats 1 | . . 1 Traps | -11 -10 -10 ------- Run | Scr Mat Min Traps Triggered 1 | . 1 . Indirectly . | . . . Trap Hack Attempts . | . . . Triggered . | . . . Disarmed . | . . . Reprogrammed . | . . . Reused . | . . . Traps Extracted . | . . . Installed . | . . . Triggered . | . . . Machines | -11 -10 -10 ---------- Run | Scr Mat Min Machines Disabled 1 | . 1 . Max in Single Turn 1 | . 1 . Machines Sabotaged . | . . . Garrisons Compromised . | . . . Overloaded Fab Kills . | . . . Hacking | -11 -10 -10 --------- Run | Scr Mat Min Machines Accessed 8 | . 8 . Terminals 6 | . 6 . Fabricators . | . . . Repair Stations . | . . . Recycling Units 2 | . 2 . Scanalyzers . | . . . Garrison Access . | . . . Total Hacks 31 | . 31 . Successful 16 | . 16 . Failed 15 | . 15 . Catastrophic . | . . . Database Lockouts . | . . . Manual 28 | . 28 . Terminals 26 | . 26 . Fabricators . | . . . Repair Stations . | . . . Recycling Units 5 | . 5 . Scanalyzers . | . . . Garrison Access . | . . . Terminal Hacks 5 | . 5 . Part Schematic 1 | . 1 . Robot Analysis 3 | . 3 . Terminal Index 1 | . 1 . Fabricator Hacks . | . . . Repair Station Hacks . | . . . Recycling Unit Hacks 2 | . 2 . Retrieve Components 2 | . 2 . Scanalyzer . | . . . Garrison Access Hacks . | . . . Unauthorized Hacks 9 | . 9 . Terminals 8 | . 8 . Track 1 | . 1 . Assimilate 4 | . 4 . Botnet 2 | . 2 . Operators 1 | . 1 . Fabricators . | . . . Repair Stations . | . . . Recycling Units 1 | . 1 . Tunnel 1 | . 1 . Scanalyzers . | . . . Garrison Access . | . . . Data Cores Recovered 1 | . 1 . Used 1 | . 1 . Hacking Detections 6 | . 6 . Full Trace Events 1 | . 1 . Feedback Events . | . . . Feedback Blocked . | . . . Robot Schematics Acquired . | . . . Robots Built . | . . . Authchips . | . . . Time . | . . . Total Robot Build Rating . | . . . Part Schematics Acquired 1 | . 1 . Parts Built . | . . . Authchips . | . . . Time . | . . . Total Part Build Rating . | . . . Parts Repaired . | . . . Time . | . . . Parts Recycled . | . . . Recycled Matter . | . . . Retrieved Matter . | . . . Retrieved Components 11 | . 11 . Parts Scanalyzed . | . . . Part Schematics Acquired . | . . . Parts Damaged . | . . . Bothacking | -11 -10 -10 ------------ Run | Scr Mat Min Used RIF Installer . | . . . Robots Hacked . | . . . Non-combat . | . . . Combat . | . . . Robot Hacks Applied . | . . . Relay Couplers Released . | . . . Fabnet Peak Effective % . | . . . Robots Rewired . | . . . Allies Hacked . | . . . Hacks Repelled . | . . . Allies | -11 -10 -10 -------- Run | Scr Mat Min Total Allies 2 | . 2 . Largest Group 2 | . 2 2 Highest-Rated Group 19 | . 19 19 Highest-Rated Ally 10 | . 10 10 Total Orders 4 | . 3 1 STAY 3 | . 2 1 FOLLOW 1 | . 1 . Ally Attacks . | . . . Total Damage . | . . . Kills . | . . . Allies Corrupted . | . . . Allies Melted . | . . . Intel | -11 -10 -10 ------- Run | Scr Mat Min Robot Analysis Total 3 | . 3 . Derelict Logs Recovered 1 | . . 1 Drone Launches . | . . . Drone Recoveries . | . . . Exploration | -11 -10 -10 ------------- Run | Scr Mat Min Turns Passed 2373 | 64 1196 1113 Spaces Moved 1371 | 59 623 689 Core 6 | 6 . . Treads . | . . . Legs . | . . . Wheels 1365 | 53 623 689 Hover . | . . . Flight . | . . . Fastest Speed 50 | 50 90 135 Average Speed 139 | 86 149 135 Slowest Speed 175 | 100 175 135 Overloaded Moves . | . . . Propulsion Burnouts . | . . . Robots Hopped . | . . . Cave-ins Triggered . | . . . Exploration Rate (%) 64 | 3 92 98 Regions Visited 2 Branch Regions 1 Pre-discovered Areas 1 | . 1 . Known Exits Taken . | . . . Unknown Exits Taken 2 | 1 1 . Scrap Searched 2 | . . 2 Spaces Dug . | . . . Terrain Destroyed 32 | . 32 . Melee . | . . . Projectile . | . . . AOE 32 | . 32 . Terrain Rammed . | . . . Walls Destroyed . | . . . Machines Disabled . | . . . Actions | -11 -10 -10 --------- Run | Scr Mat Min Total 1699 | 69 789 841 Wait 228 | 1 101 126 Move 1369 | 58 622 689 Hop . | . . . Pick Up 14 | 4 8 2 Fast Attach 8 | 6 2 . Attach 4 | . 2 2 Detach . | . . . Swap 5 | . 3 2 Drop 2 | . 2 . Fire 66 | . 47 19 Melee . | . . . Ram 3 | . 2 1 Kick . | . . . Crush . | . . . Escape Stasis . | . . . Rewire . | . . . Trap . | . . . Miscellaneous . | . . . Route ------- -11/Scrapyard -10/Materials (discovered 5 exits: [*Mat x3] / [*Min x2]) -10/Mines (discovered 2 exits: [*Mat x2]) History --------- Turn | Location | Event 10 | -11/Scrapyard | Discovered new exit (range 14) 65 | -11/Scrapyard | Entered Materials 313 | -10/Materials | Build established: Mutant 360 | -10/Materials | Discovered new exit (range 10) 575 | -10/Materials | Discovered new exit (range 12) 575 | -10/Materials | Discovered new exit (range 11) 617 | -10/Materials | Discovered new exit (range 10) 945 | -10/Materials | Core integrity fell below 50% 1050 | -10/Materials | Discovered new exit (range 14) 1261 | -10/Materials | Entered Mines 1261 | -10/Mines | Accompanied by 2 allies 1290 | -10/Mines | Discovered new exit (range 10) 1567 | -10/Mines | Assembled infested the area 1792 | -10/Mines | Learned Materials emergency access door positions 1795 | -10/Mines | Discovered new exit (range 7) 1846 | -10/Mines | Found a damaged Exp. Sensor Array with a note attached 1849 | -10/Mines | Found Prototype Device 2367 | -10/Mines | Core integrity fell below 20% 2374 | -10/Mines | Destroyed by D-53 Grenadier with Mini Grenade Launcher Last Messages --------------- 01978_ Found Hcp. Battery. 01978_ Found Med. Matter Pod. 01978_ Found Signal Interpreter. 01978_ Found 34 Matter. 01979_ Acquired 2 matter. 01983_ Searching scrap... 01983_ Found Flight Unit. 01983_ Found EM Pulse Gun. 01983_ Found 27 Matter. 01991_ Acquired EM Pulse Gun. 02171_ Slammed into K-01 Serf. 02279_ Acquired 5 matter. 02353_ T-07 Excavator destroyed. 02355_ K-01 Serf collects debris. 02357_ Wheel destroyed. 02357_ Lgt. Ion Engine destroyed. 02358_ The unstable cave ceiling collapses. 02359_ Sml. Laser destroyed. 02359_ EM Pulse Gun destroyed. 02371_ U-05 Engineer lays Concrete. Map ----- +----------------------------------------------------+ | ???????????# #### #?# ???????###### ### | | ???????????# #####?## ???????# #?## | | ???????????# #??????# ???????# ######??# | | ???????????## ######??????# ??????# #???????# | | ??????????### ###????# ??????# #???##### | | ??????????# ##???# ###???# ###?# | | ??????????#^ ##^ ##### ##### ###?# ### | | ??????????# # ^ #?# ??# | | ??????????# ^ # ######" ### ??### | | ??????????# # ##???# #### ### #???? | | ??????##### #???# ## # ### ##?? | | ?????## ^ #??## ## ## ## ##? | | ?????# ##### #??######### #? #? | | ?????# ##????# #???#???## ##?? #? | | ?????## ##????? #????### #?? #? | | ??????## ###???? #???## #?? #? | | ???????## ##????####??## ##?? #? | | ???????## ##??####??## """ ##???# #? | | ???????# #### ##?# """ #????# #? | | ???????# ## ### """ ##??## #? | | ???????# #?## !!! ## #?## #? | | ???????## #???####% ## ## ### ##? | | ????????###???????# ### ### ##?? | | ??????????????????# ## ##?# #??? | | ???#####?????????##= ### #??## #??? | | ???# #??????#### @ #??### #???## ##?? | | ???# #?????## d #???# #????## ### | | ???# ##?????# #???# #?????# | | ???# ##?????## ##???# #?????# | | ??## ######?### # u ###### #?????## | | ??# #???# ######## #?????## # | | ??# ! ##### ###????## #????## # | | ??## #?????##########???## % | | ???# !! ####### ####???????????##### | | ???## ! ##????# #??????????## | | ????# ##???### #??????????# | | ????## #?????# ############ | | ?????## #?????# ## ### | | ??????## ##?????# ####### | | ??????## ##??????## ##???## | | ??????# ##???????## #????### | | ??????# #????????### ## #??????# | | ??????## #??????????## ##?####??????# ### | | ???????#######???????????# #?????????#### %### | | ?????????????????????????# ##???????## ## | | ??????????????????????#### ##??????# # | | ??????????????????????# #####??# | | ??????????????????????# ## ##?## ## % | | ????????????????????### ## #??###?## | | ???????????????????## ######### | +----------------------------------------------------+ Best States ------------- Heat Dissipation 25 Energy Generation 10 Energy Capacity 125 Matter Stores 300 Matter Capacity 300 Sight Range 16 Terrain Scan Density 10 Propulsion Shielding 33 Evasion (%) 42 Targeting Accuracy 5 Item Schematics ----------------- Huge Storage Unit | -10/Materials | Hacked Robot Schematics ------------------ None Fabricated ------------ Nothing Alien Tech Used ----------------- None Achievements -------------- None Challenges ------------ None Game ------ Seed DynamicVortexMembrane Manual? 0 Play Time 00:10:59 Cumulative 197.1 hours Start 2022.03.09 @ 07:20:01 End 2022.03.09 @ 07:28:20 Sessions 1 Manual Loads 0 Difficulty Rogue Special Mode None Game No. 304 Rogue 282 Adventurer 4 Explorer 18 Win Type - Total 10 Types 8/0/0/2/0/0/0/0/0 Lore% 68 Gallery% 85 Achievement% 70 Wizard Run 0 Options --------- ASCII 0 Keyboard 1 Movement Numpad Keybinds 0 Fullscreen 1 Font 18/SmallcapsGlow Map View 76x50 Tactical HUD 1 Map Filters NONE Filters NONE Steam 1 RUN: a0b2bc3d-1c1a-4f78-b6ea-ea664cd9cc13